bitfinex/quotes_SOLUSD_20250107
["timestamp","ask_amount","ask_price","bid_price","bid_amount"]
[1736250533881,23.776884,213.51,213.42,23.20409188]
[1736250534085,23.776884,213.51,213.41,23.20409188]
[1736250534289,23.776884,213.51,213.42,23.20409188]
[1736250534982,23.776884,213.51,213.41,23.20409188]
[1736250535885,23.776884,213.49,213.4,23.20409188]
[1736250536986,23.776884,213.49,213.42,23.20409188]
[1736250537287,23.776884,213.49,213.36,23.20409188]
[1736250537586,23.776884,213.49,213.35,23.20409188]
[1736250537963,43.776884,213.52,213.35,23.20409188]
[1736250538160,78.902384,213.52,213.35,23.20409188]
[1736250538484,78.902384,213.52,213.33,7.6507]
[1736250538485,23.776884,213.46,213.34,23.20409188]
[1736250538698,23.776884,213.44,213.34,23.20409188]
[1736250538993,23.776884,213.39,213.23,0.70290103]
[1736250539194,23.776884,213.39,213.29,23.20409188]
[1736250539364,23.776884,213.39,213.32,23.20409188]
[1736250539365,2.46,213.39,213.32,23.20409188]
[1736250539560,2.46,213.39,213.33,23.20409188]
[1736250540202,2.46,213.39,213.31,23.20409188]
[1736250541258,2.46,213.38,213.32,23.20409188]
[1736250541460,2.46,213.41,213.36,23.20409188]
[1736250541669,2.46,213.42,213.36,23.20409188]
[1736250541873,20.0,213.45,213.35,23.20409188]
[1736250542070,2.46,213.44,213.35,23.20409188]
[1736250542666,2.46,213.44,213.33,23.20409188]
[1736250542886,2.46,213.44,213.3,24.85239188]
[1736250543582,23.776884,213.4,213.27,23.20409188]
[1736250543784,23.776884,213.36,213.27,23.20409188]
[1736250544587,26.236884,213.36,213.26,23.20409188]
[1736250544963,26.236884,213.36,213.25,30.88809188]
[1736250545292,26.236884,213.36,213.23,23.20409188]
[1736250545293,44.361584,213.36,213.23,23.20409188]
[1736250546490,20.0,213.33,213.22,23.20409188]
[1736250546887,23.776884,213.32,213.23,23.20409188]
[1736250547075,23.776884,213.32,213.24,23.20409188]
[1736250547794,23.776884,213.32,213.25,23.20409188]
[1736250548875,20.0,213.33,213.25,23.20409188]
[1736250549902,20.0,213.33,213.24,23.20409188]
[1736250550882,20.0,213.33,213.22,50.20409188]
[1736250550883,23.776884,213.32,213.22,50.20409188]
[1736250551198,23.776884,213.32,213.21,23.20409188]
[1736250551368,11.72,213.31,213.21,23.20409188]
[1736250551567,23.776884,213.3,213.19,30.81589188]
[1736250551782,23.776884,213.3,213.19,1.5391]
[1736250551991,23.776884,213.26,213.16,23.20409188]
[1736250552209,26.236884,213.26,213.15,23.20409188]
[1736250552701,23.776884,213.26,213.15,23.20409188]
[1736250552901,2.46,213.25,213.15,23.20409188]
[1736250553994,23.776884,213.24,213.14,23.90749798]
[1736250554192,35.500884,213.24,213.13,1.6083]
[1736250554591,35.500884,213.24,213.11,23.20409188]
[1736250555701,35.500884,213.24,213.12,23.20409188]
[1736250555997,22.46,213.25,213.17,23.20409188]
[1736250556203,22.38,213.25,213.17,23.20409188]
[1736250556407,22.38,213.25,213.16,23.20409188]
[1736250557102,22.38,213.25,213.15,23.20409188]
[1736250557307,23.776884,213.24,213.13,23.20409188]
[1736250557500,23.776884,213.24,213.12,23.20409188]
[1736250557814,23.776884,213.24,213.15,23.20409188]
[1736250558117,14.1034,213.25,213.17,23.20409188]
[1736250558311,2.38,213.25,213.18,23.20409188]
[1736250558677,13.2596,213.29,213.2,23.20409188]
[1736250558883,13.2596,213.29,213.11,5.0]
[1736250558884,14.1015,213.29,213.21,23.20409188]
[1736250559101,6.307,213.3,213.23,23.20409188]
[1736250559315,2.38,213.31,213.23,23.20409188]
[1736250559491,2.38,213.31,213.21,23.20409188]
[1736250560189,20.0,213.3,213.2,23.20409188]
[1736250560411,20.0,213.3,213.2,50.20409188]
[1736250561006,20.0,213.3,213.2,23.20409188]
[1736250561203,23.776884,213.29,213.2,23.20409188]
[1736250561511,11.7206,213.3,213.2,23.20409188]
[1736250562789,23.776884,213.27,213.18,23.20409188]
[1736250563102,11.7216,213.28,213.21,23.20409188]
[1736250563305,23.776884,213.3,213.22,23.20409188]
[1736250563818,3.9802,213.34,213.25,23.20409188]
[1736250564304,11.7175,213.36,213.27,23.20409188]
[1736250564493,13.2626,213.39,213.3,23.20409188]
[1736250564691,15.6426,213.39,213.27,23.20409188]
[1736250565589,15.6426,213.39,213.29,23.20409188]
[1736250566198,15.6426,213.39,213.3,23.20409188]
[1736250566395,13.2626,213.39,213.3,23.20409188]
[1736250566608,11.7156,213.39,213.32,23.20409188]
[1736250567001,11.714,213.42,213.34,23.20409188]
[1736250567194,11.714,213.42,213.33,23.20409188]
[1736250567401,11.714,213.42,213.34,23.20409188]
[1736250567919,11.714,213.42,213.33,23.20409188]
[1736250568217,11.714,213.42,213.31,23.90698836]
[1736250568415,11.714,213.42,213.3,23.90703959]
[1736250568602,11.715,213.4,213.3,23.20409188]
[1736250568998,11.715,213.4,213.32,23.20409188]
[1736250569215,11.715,213.4,213.33,23.20409188]
[1736250569595,20.0,213.4,213.33,23.20409188]
[1736250570105,35.490284,213.43,213.34,23.20409188]
[1736250571920,35.490284,213.43,213.33,23.20409188]
[1736250572216,35.490284,213.43,213.32,23.20409188]
[1736250572396,35.490284,213.43,213.31,23.20409188]
[1736250573006,35.490284,213.43,213.32,23.20409188]
[1736250573515,23.776884,213.39,213.28,23.20409188]
[1736250573699,23.776884,213.39,213.27,23.20409188]
[1736250573901,23.776884,213.35,213.25,24.72589188]
[1736250575120,11.7183,213.34,213.25,24.72589188]
[1736250575327,11.7183,213.34,213.26,23.20409188]
[1736250575692,20.0,213.39,213.27,23.90720881]
[1736250575897,20.0,213.39,213.28,23.20409188]
[1736250576516,20.0,213.39,213.27,0.70311693]
[1736250576517,20.0,213.38,213.27,23.90720881]
[1736250577117,31.7166,213.38,213.27,23.20409188]
[1736250577322,31.7166,213.38,213.28,23.20409188]
[1736250579126,31.7166,213.38,213.27,23.90718723]
[1736250579630,31.7166,213.38,213.28,23.20409188]
[1736250580331,31.7166,213.38,213.3,23.20409188]
[1736250580716,11.7166,213.38,213.31,23.20409188]
[1736250581112,11.7166,213.38,213.3,23.20409188]
[1736250581319,20.0,213.37,213.28,23.20409188]
[1736250582038,20.0,213.37,213.27,23.20409188]
[1736250582610,11.7172,213.36,213.27,23.20409188]
[1736250582810,11.7172,213.36,213.25,25.42889822]
[1736250583013,23.776884,213.35,213.23,23.20409188]
[1736250583233,23.776884,213.35,213.22,23.20409188]
[1736250583426,23.776884,213.35,213.23,23.20409188]
[1736250583819,23.776884,213.35,213.23,50.20409188]
[1736250584424,23.776884,213.35,213.25,23.20409188]
[1736250585013,11.7183,213.34,213.25,23.20409188]
[1736250586240,11.7183,213.34,213.26,23.20409188]
[1736250586817,11.7183,213.34,213.27,23.20409188]
[1736250587232,11.7183,213.34,213.26,23.20409188]
[1736250587442,11.7183,213.34,213.24,23.20409188]
[1736250587619,11.7183,213.34,213.26,23.20409188]
[1736250588249,31.7167,213.37,213.29,23.20409188]
[1736250588418,11.7167,213.37,213.3,23.20409188]
[1736250588617,11.7167,213.37,213.28,23.20409188]
[1736250588944,11.7167,213.37,213.27,23.20409188]
[1736250589410,31.7167,213.37,213.27,50.20409188]
[1736250589839,31.7167,213.37,213.28,23.20409188]
[1736250590137,11.7178,213.35,213.25,23.20409188]
[1736250591315,11.7178,213.35,213.26,23.20409188]
[1736250592715,19.9293,213.35,213.22,23.20409188]
[1736250592917,23.776884,213.34,213.23,23.20409188]
[1736250593341,23.776884,213.34,213.23,14.51611521]
[1736250594142,11.7189,213.33,213.23,14.51611521]
[1736250595545,11.7189,213.33,213.24,14.51611521]
[1736250596036,11.7189,213.33,213.23,14.51611521]
[1736250596234,11.7189,213.33,213.23,15.21931209]
[1736250598619,11.7189,213.33,213.24,14.51611521]
[1736250598819,11.7189,213.33,213.24,15.21929313]
[1736250599018,11.7189,213.33,213.24,27.0]
[1736250600545,11.7189,213.33,213.24,41.51611521]
[1736250600731,11.7189,213.33,213.26,14.51611521]
[1736250600939,11.7173,213.36,213.29,14.51611521]
[1736250601246,11.7173,213.36,213.27,14.51611521]
[1736250601447,23.776884,213.35,213.24,14.51611521]
[1736250601814,23.776884,213.35,213.22,0.70318385]
[1736250602033,23.776884,213.31,213.18,0.70320598]
[1736250602240,31.399484,213.31,213.17,14.51611521]
[1736250602545,20.0,213.28,213.15,16.08191521]
[1736250602714,20.0,213.28,213.13,13.72888137]
[1736250602715,11.7222,213.27,213.13,21.84069658]
[1736250602922,11.7222,213.27,213.13,14.51611521]
[1736250603530,20.0,213.24,213.13,14.51611521]
[1736250603849,20.0,213.24,213.14,14.51611521]
[1736250603850,11.7244,213.23,213.14,14.51611521]
[1736250604149,11.7244,213.23,213.13,42.21963167]
[1736250604351,11.7244,213.23,213.13,15.21963167]
[1736250604551,23.4444,213.27,213.13,15.21963167]
[1736250604552,11.7205,213.3,213.17,14.51611521]
[1736250604951,20.0,213.27,213.17,14.51611521]
[1736250605131,20.0,213.27,213.16,14.51611521]
[1736250605329,11.7205,213.3,213.18,23.23798349]
[1736250606534,11.7205,213.3,213.17,23.23798349]
[1736250607154,11.7205,213.3,213.18,23.23798349]
[1736250607356,11.7205,213.3,213.18,50.23798349]
[1736250608261,11.7205,213.3,213.18,27.0]
[1736250608465,20.0,213.27,213.15,23.23798349]
[1736250608688,20.0,213.27,213.16,23.23798349]
[1736250609341,11.7227,213.26,213.17,23.23798349]
[1736250610694,11.7227,213.26,213.14,23.23798349]
[1736250610962,11.7227,213.26,213.13,23.94141868]
[1736250611164,11.7227,213.26,213.14,23.23798349]
[1736250611347,35.1682,213.26,213.13,50.23798349]
[1736250612175,35.1682,213.26,213.14,23.23798349]
[1736250612467,31.847784,213.25,213.1,23.23798349]
[1736250612775,31.847784,213.25,213.09,23.23798349]
[1736250612941,8.0709,213.25,213.1,23.23798349]
[1736250613141,8.0709,213.25,213.11,23.23798349]
[1736250613577,11.7238,213.24,213.12,23.23798349]
[1736250614259,11.7238,213.24,213.13,23.23798349]
[1736250614456,11.7238,213.24,213.12,23.23798349]
[1736250615063,11.7238,213.24,213.13,23.23798349]
[1736250615463,11.7238,213.24,213.13,50.23798349]
[1736250615880,11.7238,213.24,213.13,27.0]
[1736250616369,20.0,213.21,213.09,23.23798349]
[1736250616561,20.0,213.21,213.12,23.23798349]
[1736250616756,11.7238,213.24,213.16,23.23798349]
[1736250617057,11.7238,213.24,213.18,23.23798349]
[1736250617458,8.0709,213.25,213.19,23.23798349]
[1736250617780,19.6569,213.31,213.22,23.23798349]
[1736250618088,19.6569,213.31,213.24,23.23798349]
[1736250618568,19.6569,213.31,213.25,23.23798349]
[1736250618774,7.9366,213.31,213.27,23.23798349]
[1736250619087,7.9366,213.31,213.25,23.23798349]
[1736250619289,7.9366,213.31,213.24,23.23798349]
[1736250619575,7.9366,213.31,213.26,23.23798349]
[1736250619751,7.9366,213.31,213.25,23.23798349]
[1736250621530,6.3033,213.31,213.27,23.23798349]
[1736250621906,6.3033,213.31,213.22,0.70319898]
[1736250622180,6.3033,213.31,213.25,23.23798349]
[1736250622406,6.3033,213.31,213.26,23.23798349]
[1736250622802,6.3033,213.31,213.22,0.70319898]
[1736250622803,6.3033,213.31,213.28,23.23798349]
[1736250623184,6.3033,213.31,213.29,23.23798349]
[1736250623395,6.3033,213.31,213.3,23.23798349]
[1736250623783,6.3033,213.31,213.3,50.23798349]
[1736250624278,6.3033,213.31,213.29,23.23798349]
[1736250624499,6.3033,213.31,213.3,23.23798349]
[1736250625701,6.3033,213.31,213.3,47.71777645]
[1736250627194,6.3033,213.31,213.3,74.71777645]
[1736250627391,6.3033,213.31,213.3,65.97690163]
[1736250630893,11.7135,213.43,213.31,23.776884]
[1736250631094,11.7135,213.43,213.29,18.40980867]
[1736250631095,1.6571,213.46,213.37,14.49710867]
[1736250631493,20.0,213.44,213.37,14.49710867]
[1736250631708,1.6571,213.46,213.39,14.49710867]
[1736250631895,11.7116,213.47,213.41,14.49710867]
[1736250632783,11.7116,213.47,213.42,14.49710867]
[1736250632987,11.709,213.51,213.44,14.49710867]
[1736250633374,1.586,213.52,213.45,14.49710867]
[1736250633573,1.586,213.52,213.44,14.49710867]
[1736250633782,13.2945,213.52,213.44,14.49710867]
[1736250634188,13.2945,213.52,213.44,41.49710867]
[1736250634367,13.2945,213.52,213.44,27.0]
[1736250634783,13.2945,213.52,213.44,41.49710867]
[1736250634983,13.2945,213.52,213.44,27.0]
[1736250635793,13.2945,213.52,213.45,14.49710867]
[1736250635979,13.50859062,213.56,213.47,14.49710867]
[1736250636366,11.7068,213.55,213.48,14.49710867]
[1736250636775,11.7068,213.55,213.47,14.49710867]
[1736250637492,11.7068,213.55,213.48,14.49710867]
[1736250638269,11.7068,213.55,213.47,14.49710867]
[1736250639090,11.7068,213.55,213.48,14.49710867]
[1736250639273,11.7068,213.55,213.48,42.19954794]
[1736250639796,11.7068,213.55,213.49,14.49710867]
[1736250639992,1.5382,213.58,213.49,14.49710867]
[1736250640193,1.5382,213.58,213.5,14.49710867]
[1736250640918,21.5382,213.58,213.48,14.49710867]
[1736250641072,11.7057,213.57,213.48,14.49710867]
[1736250641271,11.7057,213.57,213.49,14.49710867]
[1736250642704,11.7057,213.57,213.5,14.49710867]
[1736250642903,11.7057,213.57,213.5,41.49710867]
[1736250643103,11.7057,213.57,213.51,14.49710867]
[1736250643402,11.7057,213.57,213.52,14.49710867]
[1736250643701,11.7057,213.57,213.51,14.49710867]
[1736250643900,11.7057,213.57,213.5,41.49710867]
[1736250644301,11.7057,213.57,213.48,0.7023195]
[1736250644478,11.7057,213.57,213.46,14.49710867]
[1736250645291,11.7057,213.57,213.47,14.49710867]
[1736250645491,11.7057,213.57,213.49,14.49710867]
[1736250645680,13.2231,213.64,213.56,14.49710867]
[1736250646097,13.2231,213.64,213.53,14.49710867]
[1736250646400,13.2231,213.64,213.49,14.49710867]
[1736250646606,20.0,213.61,213.49,14.49710867]
[1736250646786,20.0,213.61,213.48,14.49710867]
[1736250646982,20.0,213.61,213.5,14.49710867]
[1736250647293,20.0,213.61,213.5,41.49710867]
[1736250647596,31.7037,213.61,213.52,14.49710867]
[1736250649109,31.7037,213.61,213.54,14.49710867]
[1736250649480,31.7037,213.61,213.53,14.49710867]
[1736250649980,20.0,213.61,213.53,14.49710867]
[1736250650579,20.0,213.61,213.54,14.49710867]
[1736250650780,13.2232,213.64,213.53,38.27399267]
[1736250651004,13.2232,213.64,213.54,14.49710867]
[1736250651380,13.2232,213.64,213.54,41.49710867]
[1736250651605,11.703,213.62,213.54,27.0]
[1736250651793,11.703,213.62,213.53,14.49710867]
[1736250652102,11.703,213.62,213.54,14.49710867]
[1736250652904,20.0,213.59,213.49,14.49710867]
[1736250653095,23.776884,213.58,213.46,2.24]
[1736250653294,23.776884,213.58,213.47,14.49710867]
[1736250653594,43.776884,213.58,213.47,14.49710867]
[1736250653781,43.776884,213.58,213.46,14.49710867]
[1736250653980,43.776884,213.58,213.47,14.49710867]
[1736250654282,11.7057,213.57,213.48,14.49710867]
[1736250654798,11.7057,213.57,213.48,41.49710867]
[1736250654982,11.7057,213.57,213.49,14.49710867]
[1736250655181,11.7057,213.57,213.5,14.49710867]
[1736250655981,20.0,213.59,213.52,14.49710867]
[1736250656878,20.0,213.59,213.5,14.49710867]
[1736250657115,23.776884,213.57,213.47,14.49710867]
[1736250658311,11.7063,213.56,213.47,14.49710867]
[1736250658606,11.7063,213.56,213.47,41.49710867]
[1736250659294,11.7063,213.56,213.47,27.0]
[1736250659683,11.7063,213.56,213.46,15.19944103]
[1736250659907,11.7063,213.56,213.48,14.49710867]
[1736250660111,11.7063,213.56,213.49,15.1995215]
[1736250660311,11.7063,213.56,213.49,14.49710867]
[1736250660612,11.7063,213.56,213.5,15.19944207]
[1736250660906,20.0,213.59,213.51,14.49710867]
[1736250661791,11.7045,213.6,213.5,14.49710867]
[1736250661997,20.0,213.59,213.5,14.49710867]
[1736250662301,11.7024,213.63,213.53,14.49710867]
[1736250662610,23.776884,213.62,213.52,14.49710867]
[1736250662810,23.776884,213.62,213.51,14.49710867]
[1736250663112,23.776884,213.62,213.52,14.49710867]
[1736250663483,23.776884,213.63,213.52,14.49710867]
[1736250663690,31.7035,213.61,213.52,14.49710867]
[1736250664104,31.7035,213.61,213.52,40.49710867]
[1736250664510,31.7035,213.61,213.53,14.49710867]
[1736250664684,31.7035,213.61,213.54,14.49710867]
[1736250664889,31.7035,213.61,213.52,14.49710867]
[1736250665110,31.7035,213.61,213.51,14.49710867]
[1736250665311,23.776884,213.6,213.49,14.49710867]
[1736250665491,11.7035,213.61,213.49,137.40230762]
[1736250665819,11.7035,213.61,213.53,14.49710867]
[1736250667499,11.7035,213.61,213.54,14.49710867]
[1736250667731,11.7035,213.61,213.54,40.49710867]
[1736250668425,23.776884,213.6,213.54,26.0]
[1736250668714,23.776884,213.61,213.54,26.0]
[1736250668914,23.776884,213.57,213.46,14.49710867]
[1736250669116,23.776884,213.57,213.46,15.19951457]
[1736250669317,23.776884,213.57,213.47,14.49710867]
[1736250669618,23.776884,213.57,213.38,136.7]
[1736250669800,20.0,213.54,213.43,14.49710867]
[1736250670120,23.776884,213.53,213.44,0.70253375]
[1736250670318,23.776884,213.53,213.43,15.19963972]
[1736250670911,23.776884,213.53,213.43,0.70253105]
[1736250671108,35.485184,213.53,213.41,0.70258221]
[1736250671294,35.485184,213.53,213.41,15.19969088]
[1736250671497,35.485184,213.53,213.42,14.49710867]
[1736250671921,35.485184,213.53,213.42,40.49710867]
[1736250672123,35.485184,213.53,213.42,41.19968083]
[1736250672328,35.485184,213.53,213.42,40.49710867]
[1736250672628,35.485184,213.53,213.43,15.1997039]
[1736250672799,35.485184,213.53,213.45,14.49710867]
[1736250672998,35.485184,213.53,213.46,14.49710867]
[1736250673214,35.485184,213.53,213.45,14.49710867]
[1736250673415,35.485184,213.53,213.46,0.7024856]
[1736250674136,11.7061,213.57,213.46,15.19959427]
[1736250674631,11.7061,213.57,213.46,0.7024856]
[1736250675423,11.7061,213.57,213.45,0.70245468]
[1736250675628,11.7061,213.57,213.45,15.19956335]
[1736250675934,11.7061,213.57,213.48,14.49710867]
[1736250676130,11.7061,213.57,213.49,0.70232766]
[1736250676718,11.7061,213.57,213.5,14.49710867]
[1736250676922,13.2082,213.6,213.51,15.19940972]
[1736250677137,13.2082,213.6,213.52,14.49710867]
[1736250677316,11.7042,213.6,213.52,14.49710867]
[1736250677717,23.776884,213.59,213.53,14.49710867]
[1736250677935,23.776884,213.59,213.52,14.49710867]
[1736250679303,20.0,213.61,213.53,0.70219915]
[1736250679508,20.0,213.61,213.53,15.19930782]
[1736250679914,23.776884,213.6,213.54,26.0]
[1736250681748,23.776884,213.6,213.55,14.49710867]
[1736250682446,23.776884,213.6,213.56,3.7936]
[1736250682630,11.6986,213.7,213.59,14.49710867]
[1736250682825,20.0,213.67,213.59,14.49710867]
[1736250683149,11.6986,213.7,213.59,14.49710867]
[1736250683656,23.395,213.73,213.59,14.49710867]
[1736250684226,23.776884,213.72,213.59,14.49710867]
[1736250684667,20.0,213.69,213.57,14.49710867]
[1736250684824,20.0,213.69,213.59,26.0]
[1736250685457,20.0,213.69,213.57,14.49710867]
[1736250685619,20.0,213.69,213.57,16.71710867]
[1736250685822,23.776884,213.67,213.57,16.71710867]
[1736250686940,23.776884,213.67,213.58,0.70205765]
[1736250687155,23.776884,213.67,213.57,17.41914476]
[1736250687543,23.776884,213.67,213.59,14.49710867]
[1736250688676,23.776884,213.67,213.59,40.49710867]
[1736250689376,23.776884,213.67,213.59,41.19912543]
[1736250689750,23.776884,213.67,213.59,15.19912543]
[1736250691464,23.3929,213.74,213.63,14.49710867]
[1736250691770,23.776884,213.7,213.61,14.49710867]
[1736250692633,35.475784,213.7,213.61,26.0]
[1736250693060,35.475784,213.7,213.6,2.22]
[1736250693535,11.697,213.73,213.69,14.49710867]
[1736250693854,11.6953,213.77,213.7,14.49710867]
[1736250694067,11.6953,213.77,213.69,14.49710867]
[1736250694555,20.0,213.74,213.69,14.49710867]
[1736250694754,11.6953,213.77,213.69,14.49710867]
[1736250695255,20.0,213.74,213.7,14.49710867]
[1736250695457,23.776884,213.73,213.7,14.49710867]
[1736250695644,23.776884,213.73,213.69,14.49710867]
[1736250695846,11.6953,213.77,213.72,14.49710867]
[1736250696050,11.6953,213.77,213.7,14.49710867]
[1736250696429,23.776884,213.76,213.71,14.49710867]
[1736250696738,11.6931,213.8,213.73,14.49710867]
[1736250696943,11.6931,213.8,213.7,14.49710867]
[1736250697147,23.776884,213.76,213.73,14.49710867]
[1736250697454,11.6931,213.8,213.72,14.49710867]
[1736250697835,11.6931,213.8,213.73,14.49710867]
[1736250698038,11.6893,213.87,213.75,14.49710867]
[1736250698292,11.6893,213.87,213.74,0.7015733]
[1736250698293,11.6893,213.87,213.76,14.49710867]
[1736250698626,11.6893,213.87,213.75,14.49710867]
[1736250699465,43.776884,213.83,213.75,40.49710867]
[1736250699846,43.776884,213.83,213.76,14.49710867]
[1736250700362,43.776884,213.83,213.74,0.70152244]
[1736250700537,23.776884,213.81,213.69,15.19863111]
[1736250700734,23.776884,213.81,213.69,0.70152244]
[1736250700932,23.776884,213.81,213.69,14.49710867]
[1736250701464,23.776884,213.77,213.68,1.6419]
[1736250701758,23.776884,213.81,213.68,1.6419]
[1736250701964,23.776884,213.77,213.68,1.6419]
[1736250702549,35.472084,213.77,213.68,16.13900867]
[1736250703936,35.472084,213.77,213.69,14.49710867]
[1736250704138,35.472084,213.77,213.7,14.49710867]
[1736250704363,20.0,213.77,213.72,14.49710867]
[1736250704867,11.6931,213.8,213.73,14.49710867]
[1736250705252,11.6931,213.8,213.69,0.70170222]
[1736250705253,11.6931,213.8,213.74,14.49710867]
[1736250705568,11.6931,213.8,213.75,14.49710867]
[1736250705783,20.0,213.84,213.76,14.49710867]
[1736250705959,20.0,213.84,213.77,14.49710867]
[1736250706145,20.0,213.84,213.69,0.70170222]
[1736250706146,11.6893,213.87,213.79,14.49710867]
[1736250706554,11.6893,213.87,213.77,14.49710867]
[1736250707054,20.0,213.84,213.78,14.49710867]
[1736250707254,23.776884,213.86,213.78,14.49710867]
[1736250707445,23.776884,213.86,213.79,14.49710867]
[1736250709271,11.6893,213.87,213.83,14.49710867]
[1736250709469,11.6893,213.87,213.82,14.49710867]
[1736250709653,11.6893,213.87,213.8,14.49710867]
[1736250709951,11.6893,213.87,213.81,14.49710867]
[1736250710169,23.776884,213.86,213.81,14.49710867]
[1736250710846,20.0,213.89,213.81,14.49710867]
[1736250711347,20.0,213.89,213.82,14.49710867]
[1736250711859,23.776884,213.88,213.82,14.49710867]
[1736250712771,23.776884,213.88,213.81,14.49710867]
[1736250713342,23.776884,213.88,213.78,26.70131411]
[1736250713343,23.776884,213.86,213.79,14.49710867]
[1736250713544,23.776884,213.86,213.78,26.70131411]
[1736250713545,23.776884,213.86,213.78,14.49710867]
[1736250714039,23.776884,213.86,213.78,15.19852735]
[1736250714373,23.776884,213.86,213.79,14.49710867]
[1736250714666,23.776884,213.86,213.81,14.49710867]
[1736250715049,23.776884,213.86,213.79,14.49710867]
[1736250715250,31.6877,213.9,213.81,14.49710867]
[1736250715644,23.776884,213.89,213.81,14.49710867]
[1736250715843,23.776884,213.89,213.77,2.21999937]
[1736250715844,23.776884,213.89,213.8,14.49710867]
[1736250716067,23.776884,213.89,213.81,14.49710867]
[1736250716243,31.6877,213.9,213.82,14.49710867]
[1736250716773,31.6877,213.9,213.83,14.49710867]
[1736250717175,31.6877,213.9,213.77,2.21999937]
[1736250717353,23.776884,213.89,213.81,14.49710867]
[1736250717776,23.776884,213.89,213.82,14.49710867]
[1736250717981,31.6877,213.9,213.85,14.49710867]
[1736250718182,31.6877,213.9,213.77,138.2187]
[1736250718479,31.6877,213.9,213.83,14.49710867]
[1736250718979,31.6877,213.9,213.77,1.5187]
[1736250719179,23.776884,213.89,213.77,2.22003433]
[1736250719380,23.776884,213.89,213.76,15.19855079]
[1736250719554,23.776884,213.89,213.76,14.49710867]
[1736250719880,23.776884,213.89,213.73,17.43856551]
[1736250720071,20.0,213.81,213.72,16.01590867]
[1736250720275,20.0,213.81,213.74,14.49710867]
[1736250720810,23.776884,213.8,213.74,14.49710867]
[1736250721078,23.776884,213.8,213.76,14.49710867]
[1736250721262,23.776884,213.8,213.77,14.49710867]
[1736250721468,11.6918,213.83,213.77,14.49710867]
[1736250721781,11.6838,213.97,213.82,16.01430867]
[1736250721978,20.0,213.94,213.86,14.49710867]
[1736250722184,20.0,213.94,213.85,14.49710867]
[1736250722571,20.0,213.94,213.86,14.49710867]
[1736250722984,23.776884,213.93,213.86,14.49710867]
[1736250723188,23.776884,213.96,213.86,14.49710867]
[1736250723360,43.776884,213.93,213.86,14.49710867]
[1736250723989,20.0,213.93,213.87,14.49710867]
[1736250724988,11.6826,214.0,213.91,14.49710867]
[1736250725194,11.6826,214.0,213.88,0.70114695]
[1736250725369,11.6826,214.0,213.93,14.49710867]
[1736250725963,23.776884,213.99,213.93,14.49710867]
[1736250726163,11.6826,214.0,213.93,14.49710867]
[1736250726687,11.6826,214.0,213.94,14.49710867]
[1736250727369,23.776884,213.99,213.94,14.49710867]
[1736250728271,1.614,214.04,213.89,20.0]
[1736250728272,6.2886,214.1,213.98,14.49710867]
[1736250729077,6.2886,214.1,213.99,14.49710867]
[1736250729274,11.6773,214.09,214.02,14.49710867]
[1736250729480,11.6773,214.09,214.01,14.49710867]
[1736250729777,23.776884,214.05,214.0,14.49710867]
[1736250729965,20.0,214.06,214.0,14.49710867]
[1736250730280,11.6773,214.09,214.03,14.49710867]
[1736250730498,11.6773,214.09,214.02,14.49710867]
[1736250730830,11.6773,214.09,213.99,14.49710867]
[1736250731009,23.776884,214.08,213.99,14.49710867]
[1736250731208,20.0,214.05,213.94,138.2942]
[1736250731412,20.0,214.05,213.99,14.49710867]
[1736250731564,20.0,214.05,214.0,14.49710867]
[1736250731764,20.0,214.05,213.99,14.49710867]
[1736250731765,23.776884,214.04,213.99,14.49710867]
[1736250732003,23.776884,214.05,213.97,14.49710867]
[1736250732234,23.776884,214.05,213.99,14.49710867]
[1736250733303,23.776884,214.05,213.98,14.49710867]
[1736250733637,23.776884,214.05,213.97,14.49710867]
[1736250734420,23.776884,214.05,213.98,14.49710867]
[1736250734601,23.776884,214.05,213.99,14.49710867]
[1736250734791,11.6792,214.06,214.0,14.49710867]
[1736250735537,23.776884,214.05,214.0,14.49710867]
[1736250736002,23.776884,214.05,213.99,14.49710867]
[1736250736205,23.776884,214.05,213.98,14.49710867]